fUSD/lending_fUSD_20250617
["ID","MTS","AMOUNT","RATE_DAILY","PERIOD"]
[366261327,1750164758813,-490.0,0.00017753,2]
[366261328,1750164758824,-698.17,0.00017753,2]
[366261329,1750164758833,-151.0,0.00017753,2]
[366261330,1750164758843,-151.0,0.00017753,2]
[366261331,1750164758853,-151.0,0.00017753,2]
[366261332,1750164758863,-151.0,0.00017753,2]
[366261333,1750164758874,-151.0,0.00017753,2]
[366261334,1750164758883,-151.0,0.00017753,2]
[366261335,1750164758893,-1641.86,0.00017753,2]
[366261336,1750164758902,-4754.63,0.00017753,2]
[366261337,1750164758912,-490.0,0.00017753,2]
[366261338,1750164758921,-151.0,0.00017753,2]
[366261339,1750164758931,-151.0,0.00017753,2]
[366261340,1750164758941,-717.05,0.00017753,2]
[366261341,1750164758951,-947.42,0.00017753,2]
[366261342,1750164758961,-193.842132,0.00017753,2]
[366261343,1750164758970,-818.35,0.00017753,2]
[366261344,1750164758980,-490.0,0.00017753,2]
[366261345,1750164758990,-3609.48,0.00017753,2]
[366261346,1750164759000,-490.0,0.00017753,2]
[366261347,1750164759010,-1389.77,0.00017753,2]
[366261348,1750164759019,-2322.63,0.00017753,2]
[366261349,1750164759030,-1795.91,0.00017753,2]
[366261350,1750164759039,-490.0,0.00017753,2]
[366261351,1750164759050,-490.0,0.00017753,2]
[366261352,1750164759059,-676.55,0.00017753,2]
[366261353,1750164759069,-490.0,0.00017753,2]
[366261354,1750164759078,-490.0,0.00017753,2]
[366261355,1750164759088,-1713.68,0.00017753,2]
[366261356,1750164759097,-490.0,0.00017753,2]
[366261357,1750164759107,-490.0,0.00017753,2]
[366261358,1750164759116,-490.0,0.00017753,2]
[366261359,1750164759127,-614.87,0.00017753,2]
[366261360,1750164759136,-536.49,0.00017753,2]
[366261361,1750164759146,-164.215045,0.00017753,2]
[366261362,1750164759156,-515.18,0.00017753,2]
[366261363,1750164759166,-151.0,0.00017753,2]
[366261364,1750164759176,-922.15,0.00017753,2]
[366261365,1750164759187,-151.0,0.00017753,2]
[366261366,1750164759199,-151.0,0.00017753,2]
[366261367,1750164759209,-151.0,0.00017753,2]
[366261368,1750164759218,-490.0,0.00017753,2]
[366261369,1750164759228,-151.0,0.00017753,2]
[366261370,1750164759238,-151.0,0.00017753,2]
[366261371,1750164759248,-836.27,0.00017753,2]
[366261372,1750164759257,-151.0,0.00017753,2]
[366261373,1750164759267,-580.03,0.00017753,2]
[366261374,1750164759277,-196.446202,0.00017753,2]
[366261375,1750164759287,-764.25,0.00017753,2]
[366261376,1750164759313,-6572.71,0.00017753,2]
[366261377,1750164759323,-2988.54,0.00017753,2]
[366261378,1750164759333,-490.0,0.00017753,2]
[366261379,1750164759342,-767.81,0.00017753,2]
[366261380,1750164759352,-490.0,0.00017753,2]
[366261381,1750164759362,-629.84,0.00017753,2]
[366261382,1750164759372,-490.0,0.00017753,2]
[366261383,1750164759381,-2812.68,0.00017753,2]
[366261384,1750164759392,-2984.48,0.00017753,2]
[366261385,1750164759401,-1481.78,0.00017753,2]
[366261386,1750164759410,-490.0,0.00017753,2]
[366261387,1750164759420,-673.06,0.00017753,2]
[366261388,1750164759430,-432.78743232,0.00017753,2]
[366261389,1750164759440,-2564.31,0.00017753,2]
[366261390,1750164759451,-490.0,0.00017753,2]
[366261391,1750164759460,-857.16,0.00017753,2]
[366261392,1750164759471,-599.13,0.00017753,2]
[366261393,1750164759482,-13649.84,0.00017753,2]
[366261394,1750164759492,-1032.47,0.00017753,2]
[366261395,1750164759503,-490.0,0.00017753,2]
[366261396,1750164759513,-490.0,0.00017753,2]
[366261397,1750164759524,-6525.63,0.00017753,2]
[366261398,1750164759534,-680.82,0.00017753,2]
[366261399,1750164759544,-490.0,0.00017753,2]
[366261400,1750164759554,-490.0,0.00017753,2]
[366261401,1750164759565,-981.43,0.00017753,2]
[366261402,1750164759575,-490.0,0.00017753,2]
[366261403,1750164759586,-5730.1,0.00017753,2]
[366261404,1750164759595,-713.63,0.00017753,2]
[366261405,1750164759605,-490.0,0.00017753,2]
[366261406,1750164759615,-680.36,0.00017753,2]
[366261407,1750164759625,-490.0,0.00017753,2]
[366261408,1750164759634,-4433.13,0.00017753,2]
[366261409,1750164759644,-756.93,0.00017753,2]
[366261410,1750164759655,-1533.32,0.00017753,2]
[366261411,1750164759666,-969.14,0.00017753,2]
[366261412,1750164759677,-2923.07,0.00017753,2]
[366261413,1750164759687,-490.0,0.00017753,2]
[366261414,1750164759698,-1116.74,0.00017753,2]
[366261415,1750164759708,-818.68,0.00017753,2]
[366261416,1750164759718,-151.0,0.00017753,2]
[366261417,1750164759728,-151.0,0.00017753,2]
[366261418,1750164759737,-151.0,0.00017753,2]
[366261419,1750164759747,-151.0,0.00017753,2]
[366261420,1750164759758,-151.0,0.00017753,2]
[366261421,1750164759768,-490.0,0.00017753,2]
[366261422,1750164759778,-151.0,0.00017753,2]
[366261423,1750164759788,-2360.93,0.00017753,2]
[366261424,1750164759798,-151.0,0.00017753,2]
[366261425,1750164759807,-1777.4,0.00017753,2]
[366261426,1750164759817,-293.229892,0.00017753,2]
[366261427,1750164759827,-490.0,0.00017753,2]
[366261428,1750164759837,-490.0,0.00017753,2]
[366261429,1750164759847,-4856.36,0.00017753,2]
[366261430,1750164759857,-619.82,0.00017753,2]
[366261431,1750164759867,-510.66,0.00017753,2]
[366261432,1750164759877,-1028.02,0.00017753,2]
[366261433,1750164759888,-585.87,0.00017753,2]
[366261434,1750164759898,-3108.13,0.00017753,2]
[366261435,1750164759907,-6423.75,0.00017753,2]
[366261436,1750164759917,-602.17,0.00017753,2]
[366261437,1750164759928,-2298.59,0.00017753,2]
[366261438,1750164759938,-650.83,0.00017753,2]
[366261439,1750164759948,-490.0,0.00017753,2]
[366261440,1750164759959,-1192.02,0.00017753,2]
[366261441,1750164759969,-202.257405,0.00017753,2]
[366261442,1750164759979,-490.0,0.00017753,2]
[366261443,1750164759988,-681.33,0.00017753,2]
[366261444,1750164759998,-202.257405,0.00017753,2]
[366261445,1750164760008,-202.257405,0.00017753,2]
[366261446,1750164760018,-202.257405,0.00017753,2]
[366261447,1750164760027,-202.257405,0.00017753,2]
[366261448,1750164760037,-202.257405,0.00017753,2]
[366261449,1750164760047,-588.42,0.00017753,2]
[366261450,1750164760057,-1869.29,0.00017753,2]
[366261451,1750164760066,-202.257405,0.00017753,2]
[366261452,1750164760076,-490.0,0.00017753,2]
[366261453,1750164760086,-490.0,0.00017753,2]
[366261454,1750164760096,-202.257405,0.00017753,2]
[366261455,1750164760107,-20628.06,0.00017753,2]
[366261456,1750164760117,-3367.5,0.00017753,2]
[366261457,1750164760127,-202.257405,0.00017753,2]
[366261458,1750164760137,-202.257405,0.00017753,2]
[366261459,1750164760147,-490.0,0.00017753,2]
[366261460,1750164760157,-2842.54,0.00017753,2]
[366261461,1750164760168,-18776.46,0.00017753,2]
[366261462,1750164760178,-202.257405,0.00017753,2]
[366261463,1750164760190,-202.257402,0.00017753,2]
[366261464,1750164760200,-490.0,0.00017753,2]
[366261465,1750164760210,-490.0,0.00017753,2]
[366261466,1750164760220,-490.0,0.00017753,2]
[366261467,1750164760229,-1519.95,0.00017753,2]
[366261468,1750164760241,-1024.11,0.00017753,2]
[366261469,1750164760251,-1964.7,0.00017753,2]
[366261470,1750164760261,-150.0,0.00017761,2]
[366261471,1750164760272,-441.07574,0.00017768,2]
[366261472,1750164760284,-150.0,0.00017768,2]
[366261473,1750164760293,-1500.0,0.00017768,2]
[366261474,1750164760303,-150.0,0.00017774,2]
[366261475,1750164760314,-169.0,0.00017779,2]
[366261476,1750164760324,-150.0,0.0001778,2]
[366261477,1750164760334,-150.0,0.0001778,2]
[366261478,1750164760344,-169.0,0.0001778,2]
[366261479,1750164760354,-150.0,0.00017793,2]
[366261480,1750164760363,-200.86,0.00017796,2]
[366261481,1750164760373,-208.0,0.00017796,8]
[366261482,1750164760383,-2530.20670519,0.000178,3]
[366261483,1750164760393,-150.0,0.00017805,2]
[366261484,1750164760403,-150.0,0.00017805,2]
[366261485,1750164760413,-218.007186,0.00017808,2]
[366261486,1750164760424,-151.0,0.00017808,2]
[366261487,1750164760434,-151.0,0.00017808,2]
[366261488,1750164760444,-166.183323,0.00017808,2]
[366261489,1750164760454,-151.0,0.00017808,2]
[366261490,1750164760464,-4000.0,0.00017808,2]
[366261491,1750164760475,-4000.0,0.00017808,2]
[366261492,1750164760484,-1070.29821988,0.00017826,2]
[366261493,1750164760592,-150.0,0.00017829,2]
[366261494,1750164760611,-9264.68941313,0.00017831,2]
[366261495,1750164760621,-155.21774203,0.00017838,2]
[366261496,1750164760631,-150.0,0.00017839,2]
[366261497,1750164760641,-3000.0,0.00017844,4]
[366261498,1750164760650,-168.0,0.00017848,2]
[366261499,1750164760661,-828.13,0.00017853,2]
[366261500,1750164760671,-150.0,0.00017854,2]
[366261501,1750164760682,-753.05,0.00017863,7]
[366261502,1750164760692,-753.05,0.00017863,7]
[366261503,1750164760701,-753.05,0.00017863,7]
[366261504,1750164760711,-753.05,0.00017863,7]
[366261505,1750164760722,-1500.0,0.00017868,2]
[366261506,1750164760732,-1500.0,0.00017868,2]
[366261507,1750164760742,-1500.0,0.00017868,2]
[366261508,1750164760753,-325.28317075,0.00017868,2]
[366261509,1750164760763,-695.58482187,0.00017868,2]
[366261510,1750164760773,-1500.0,0.00017868,2]
[366261511,1750164760783,-801.98843844,0.00017868,2]
[366261512,1750164760794,-665.3792604,0.00017868,2]
[366261513,1750164760804,-1500.0,0.00017868,2]
[366261514,1750164760814,-1500.0,0.00017868,2]
[366261515,1750164760827,-1500.0,0.00017868,2]
[366261516,1750164760837,-1500.0,0.00017868,2]
[366261517,1750164760848,-1500.0,0.00017868,2]
[366261518,1750164760857,-1000.0,0.00017869,2]
[366261519,1750164760867,-150.0,0.0001787,2]
[366261520,1750164760877,-150.0,0.00017882,2]
[366261521,1750164760887,-150.0,0.00017897,2]
[366261522,1750164760897,-214.24179705,0.000179,2]
[366261523,1750164760906,-200.0,0.000179,3]
[366261524,1750164760916,-168.0,0.00017901,2]
[366261525,1750164760925,-168.0,0.0001791,2]
[366261526,1750164760934,-490.0,0.00017917,2]
[366261527,1750164760943,-676.71,0.00017917,2]
[366261528,1750164760953,-526.4,0.00017917,2]
[366261529,1750164760963,-490.0,0.00017917,2]
[366261530,1750164760973,-490.0,0.00017917,2]
[366261531,1750164760984,-490.0,0.00017917,2]
[366261532,1750164760994,-490.0,0.00017917,2]
[366261533,1750164761004,-577.6,0.00017917,2]
[366261534,1750164761014,-517.79,0.00017917,2]
[366261535,1750164761025,-490.0,0.00017917,2]
[366261536,1750164761035,-490.0,0.00017917,2]
[366261537,1750164761045,-1000.0,0.00017917,2]
[366261538,1750164761054,-490.0,0.00017917,2]
[366261539,1750164761064,-490.0,0.00017917,2]
[366261540,1750164761074,-490.0,0.00017917,2]
[366261541,1750164761084,-490.0,0.00017917,2]
[366261542,1750164761095,-538.89,0.00017917,2]
[366261543,1750164761104,-608.75,0.00017917,2]
[366261544,1750164761114,-490.0,0.00017917,2]
[366261545,1750164761124,-490.0,0.00017917,2]
[366261546,1750164761134,-490.0,0.00017917,2]
[366261547,1750164761144,-490.0,0.00017917,2]
[366261548,1750164761154,-490.0,0.00017917,2]
[366261549,1750164761164,-490.0,0.00017917,2]
[366261550,1750164761174,-490.0,0.00017917,2]
[366261551,1750164761185,-490.0,0.00017917,2]
[366261552,1750164761199,-490.0,0.00017917,2]
[366261553,1750164761208,-161.16485811,0.00017917,2]
[366261554,1750164761219,-490.0,0.00017917,2]
[366261555,1750164761229,-490.0,0.00017917,2]
[366261556,1750164761239,-151.0,0.00017917,2]
[366261557,1750164761248,-151.0,0.00017917,2]
[366261558,1750164761259,-151.0,0.00017917,2]
[366261559,1750164761269,-151.0,0.00017917,2]
[366261560,1750164761280,-151.0,0.00017917,2]
[366261561,1750164761290,-151.0,0.00017917,2]
[366261562,1750164761299,-151.0,0.00017917,2]
[366261563,1750164761309,-490.0,0.00017917,2]
[366261564,1750164761319,-494.84004028,0.00017917,2]
[366261565,1750164761330,-490.0,0.00017917,2]
[366261566,1750164761340,-203.213799,0.00017917,2]
[366261567,1750164761350,-490.0,0.00017917,2]
[366261568,1750164761360,-410.09099439,0.00017917,2]
[366261569,1750164761370,-490.0,0.00017917,2]
[366261570,1750164761380,-490.0,0.00017917,2]
[366261571,1750164761390,-490.0,0.00017917,2]
[366261572,1750164761401,-490.0,0.00017917,2]
[366261573,1750164761412,-490.0,0.00017917,2]
[366261574,1750164761422,-447.57514645,0.00017917,2]
[366261575,1750164761432,-490.0,0.00017917,2]
[366261576,1750164761442,-490.0,0.00017917,2]
[366261577,1750164761452,-546.58,0.00017917,2]
[366261578,1750164761462,-490.0,0.00017917,2]
[366261579,1750164761472,-427.593687,0.00017917,2]
[366261580,1750164761482,-427.593687,0.00017917,2]
[366261581,1750164761492,-427.593687,0.00017917,2]
[366261582,1750164761502,-427.593687,0.00017917,2]
[366261583,1750164761511,-427.593687,0.00017917,2]
[366261584,1750164761522,-427.593687,0.00017917,2]
[366261585,1750164761533,-490.0,0.00017917,2]
[366261586,1750164761542,-427.593687,0.00017917,2]
[366261587,1750164761553,-151.0,0.00017917,2]
[366261588,1750164761563,-427.593687,0.00017917,2]
[366261589,1750164761573,-151.0,0.00017917,2]
[366261590,1750164761583,-151.0,0.00017917,2]
[366261591,1750164761593,-427.593687,0.00017917,2]
[366261592,1750164761603,-151.0,0.00017917,2]
[366261593,1750164761613,-427.593687,0.00017917,2]
[366261594,1750164761623,-151.0,0.00017917,2]
[366261595,1750164761633,-427.593687,0.00017917,2]
[366261596,1750164761643,-543.01,0.00017917,2]
[366261597,1750164761653,-151.0,0.00017917,2]
[366261598,1750164761663,-427.593693,0.00017917,2]
[366261599,1750164761672,-490.0,0.00017917,2]
[366261600,1750164761682,-161.417372,0.00017917,2]
[366261601,1750164761694,-546.23,0.00017917,2]
[366261602,1750164761704,-806.69,0.00017917,2]
[366261603,1750164761714,-151.0,0.00017917,2]
[366261604,1750164761724,-151.0,0.00017917,2]
[366261605,1750164761734,-397.28738582,0.00017917,2]
[366261606,1750164761744,-490.0,0.00017917,2]
[366261607,1750164761753,-490.0,0.00017917,2]
[366261608,1750164761763,-715.33,0.00017917,2]
[366261609,1750164761773,-500.75,0.00017917,2]
[366261610,1750164761783,-151.0,0.00017917,2]
[366261611,1750164761793,-151.0,0.00017917,2]
[366261612,1750164761803,-151.0,0.00017917,2]
[366261613,1750164761813,-151.0,0.00017917,2]
[366261614,1750164761823,-151.0,0.00017917,2]
[366261615,1750164761833,-490.0,0.00017917,2]
[366261616,1750164761843,-151.0,0.00017917,2]
[366261617,1750164761853,-151.0,0.00017917,2]
[366261618,1750164761863,-151.0,0.00017917,2]
[366261619,1750164761873,-254.010924,0.00017917,2]
[366261620,1750164761883,-151.0,0.00017917,2]
[366261621,1750164761893,-880.65,0.00017917,2]
[366261622,1750164761903,-151.0,0.00017917,2]
[366261623,1750164761913,-151.0,0.00017917,2]
[366261624,1750164761922,-284.06226619,0.00017917,2]
[366261625,1750164761933,-490.0,0.00017917,2]
[366261626,1750164761943,-2255.52,0.00017917,2]
[366261627,1750164761953,-1412.16,0.00017917,2]
[366261628,1750164761963,-882.97,0.00017917,2]
[366261629,1750164761974,-490.0,0.00017917,2]
[366261630,1750164761984,-834.11,0.00017917,2]
[366261631,1750164761994,-490.0,0.00017917,2]
[366261632,1750164762004,-490.0,0.00017917,2]
[366261633,1750164762013,-490.0,0.00017917,2]
[366261634,1750164762022,-832.39,0.00017917,2]
[366261635,1750164762032,-490.0,0.00017917,2]
[366261636,1750164762042,-495.79808806,0.00017917,2]
[366261637,1750164762052,-490.0,0.00017917,2]
[366261638,1750164762062,-490.0,0.00017917,2]
[366261639,1750164762394,-151.0,0.00017917,2]
[366261640,1750164762407,-151.0,0.00017917,2]
[366261641,1750164762417,-151.0,0.00017917,2]
[366261642,1750164762427,-490.0,0.00017917,2]
[366261643,1750164762437,-151.0,0.00017917,2]
[366261644,1750164762447,-920.64,0.00017917,2]
[366261645,1750164762457,-855.44,0.00017917,2]
[366261646,1750164762468,-490.0,0.00017917,2]
[366261647,1750164762479,-616.61,0.00017917,2]
[366261648,1750164762490,-490.0,0.00017917,2]
[366261649,1750164762500,-1137.38,0.00017917,2]
[366261650,1750164762510,-505.82,0.00017917,2]
[366261651,1750164762520,-662.168044,0.00017917,2]
[366261652,1750164762530,-490.0,0.00017917,2]
[366261653,1750164762541,-662.168044,0.00017917,2]
[366261654,1750164762552,-662.168044,0.00017917,2]
[366261655,1750164762563,-490.0,0.00017917,2]
[366261656,1750164762574,-662.168044,0.00017917,2]
[366261657,1750164762584,-662.168044,0.00017917,2]
[366261658,1750164762594,-662.168044,0.00017917,2]
[366261659,1750164762605,-662.168044,0.00017917,2]
[366261660,1750164762615,-662.168044,0.00017917,2]
[366261661,1750164762625,-662.168044,0.00017917,2]
[366261662,1750164762637,-662.168038,0.00017917,2]
[366261663,1750164762648,-490.0,0.00017917,2]
[366261664,1750164762658,-1072.95,0.00017917,2]
[366261665,1750164762668,-618.54,0.00017917,2]
[366261666,1750164762678,-151.0,0.00017917,2]
[366261667,1750164762688,-151.0,0.00017917,2]
[366261668,1750164762698,-301.75624,0.00017917,2]
[366261669,1750164762708,-1048.33,0.00017917,2]
[366261670,1750164762718,-490.0,0.00017917,2]
[366261671,1750164762728,-151.0,0.00017917,2]
[366261672,1750164762739,-490.0,0.00017917,2]
[366261673,1750164762749,-252.720699,0.00017917,2]
[366261674,1750164762760,-490.0,0.00017917,2]
[366261675,1750164762770,-151.0,0.00017917,2]
[366261676,1750164762781,-151.0,0.00017917,2]
[366261677,1750164762791,-160.256781,0.00017917,2]
[366261678,1750164762801,-490.0,0.00017917,2]
[366261679,1750164762812,-490.0,0.00017917,2]
[366261680,1750164762822,-604.26,0.00017917,2]
[366261681,1750164762834,-490.0,0.00017917,2]
[366261682,1750164762844,-490.0,0.00017917,2]
[366261683,1750164762854,-598.755129,0.00017917,2]
[366261684,1750164762864,-151.0,0.00017917,2]
[366261685,1750164762875,-151.0,0.00017917,2]
[366261686,1750164762885,-152.960072,0.00017917,2]
[366261687,1750164762895,-493.29,0.00017917,2]
[366261688,1750164762906,-598.755129,0.00017917,2]
[366261689,1750164762916,-598.755129,0.00017917,2]
[366261690,1750164762928,-494.61,0.00017917,2]
[366261691,1750164762938,-490.0,0.00017917,2]
[366261692,1750164762949,-598.755129,0.00017917,2]
[366261693,1750164762959,-598.755129,0.00017917,2]
[366261694,1750164762970,-598.755129,0.00017917,2]
[366261695,1750164762980,-925.36,0.00017917,2]
[366261696,1750164762991,-629.26,0.00017917,2]
[366261697,1750164763000,-490.0,0.00017917,2]
[366261698,1750164763010,-598.755129,0.00017917,2]
[366261699,1750164763020,-598.755129,0.00017917,2]
[366261700,1750164763030,-598.755129,0.00017917,2]
[366261701,1750164763040,-598.755129,0.00017917,2]
[366261702,1750164763050,-598.755129,0.00017917,2]
[366261703,1750164763060,-598.755123,0.00017917,2]
[366261704,1750164763071,-1024.62,0.00017917,2]
[366261705,1750164763081,-490.0,0.00017917,2]
[366261706,1750164763091,-534.01,0.00017917,2]
[366261707,1750164763101,-490.0,0.00017917,2]
[366261708,1750164763111,-1219.14,0.00017917,2]
[366261709,1750164763121,-2020.32718,0.00017917,2]
[366261710,1750164763131,-2020.32718,0.00017917,2]
[366261711,1750164763142,-2020.32718,0.00017917,2]
[366261712,1750164763152,-2020.32718,0.00017917,2]
[366261713,1750164763162,-2020.32718,0.00017917,2]
[366261714,1750164763172,-490.0,0.00017917,2]
[366261715,1750164763182,-2020.32718,0.00017917,2]
[366261716,1750164763195,-490.0,0.00017917,2]
[366261717,1750164763205,-608.67,0.00017917,2]
[366261718,1750164763215,-2020.32718,0.00017917,2]
[366261719,1750164763225,-628.4,0.00017917,2]
[366261720,1750164763235,-2020.32718,0.00017917,2]
[366261721,1750164763245,-2020.32718,0.00017917,2]
[366261722,1750164763255,-490.0,0.00017917,2]
[366261723,1750164763265,-2020.32718,0.00017917,2]
[366261724,1750164763275,-2020.32718,0.00017917,2]
[366261725,1750164763285,-2020.327187,0.00017917,2]
[366261726,1750164763295,-490.0,0.00017917,2]
[366261727,1750164763306,-490.0,0.00017917,2]
[366261728,1750164763316,-741.58,0.00017917,2]
[366261729,1750164763326,-576.72,0.00017917,2]
[366261730,1750164763336,-490.0,0.00017917,2]
[366261731,1750164763346,-526.38,0.00017917,2]
[366261732,1750164763356,-612.0,0.00017917,2]
[366261733,1750164763367,-490.0,0.00017917,2]
[366261734,1750164763376,-490.0,0.00017917,2]
[366261735,1750164763387,-638.52,0.00017917,2]
[366261736,1750164763397,-490.0,0.00017917,2]
[366261737,1750164763408,-565.57,0.00017917,2]
[366261738,1750164763418,-490.0,0.00017917,2]
[366261739,1750164763428,-490.0,0.00017917,2]
[366261740,1750164763439,-1223.14,0.00017917,2]
[366261741,1750164763450,-715.85,0.00017917,2]
[366261742,1750164763461,-490.0,0.00017917,2]
[366261743,1750164763471,-490.0,0.00017917,2]
[366261744,1750164763481,-1060.81,0.00017917,2]
[366261745,1750164763491,-1389.56,0.00017917,2]
[366261746,1750164763502,-778.546687,0.00017917,2]
[366261747,1750164763511,-778.546687,0.00017917,2]
[366261748,1750164763521,-778.546687,0.00017917,2]
[366261749,1750164763532,-627.1,0.00017917,2]
[366261750,1750164763542,-778.546687,0.00017917,2]
[366261751,1750164763552,-778.546687,0.00017917,2]
[366261752,1750164763562,-778.546687,0.00017917,2]
[366261753,1750164763573,-213.443501,0.00017917,2]
[366261754,1750164763583,-213.443501,0.00017917,2]
[366261755,1750164763592,-490.0,0.00017917,2]
[366261756,1750164763603,-213.443501,0.00017917,2]
[366261757,1750164763613,-490.0,0.00017917,2]
[366261758,1750164763623,-213.443501,0.00017917,2]
[366261759,1750164763633,-213.443501,0.00017917,2]
[366261760,1750164763643,-213.443501,0.00017917,2]
[366261761,1750164763654,-778.546687,0.00017917,2]
[366261762,1750164763664,-778.546687,0.00017917,2]
[366261763,1750164763674,-778.546687,0.00017917,2]
[366261764,1750164763686,-778.546687,0.00017917,2]
[366261765,1750164763696,-856.55,0.00017917,2]
[366261766,1750164763707,-213.443501,0.00017917,2]
[366261767,1750164763717,-778.546687,0.00017917,2]
[366261768,1750164763727,-213.443501,0.00017917,2]
[366261769,1750164763743,-778.546694,0.00017917,2]
[366261770,1750164763753,-213.443501,0.00017917,2]
[366261771,1750164763769,-213.443501,0.00017917,2]
[366261772,1750164763791,-490.0,0.00017917,2]
[366261773,1750164763803,-213.443501,0.00017917,2]
[366261774,1750164763813,-213.443502,0.00017917,2]
[366261775,1750164763824,-904.8,0.00017917,2]
[366261776,1750164763835,-1659.85,0.00017917,2]
[366261777,1750164763846,-614.6,0.00017917,2]
[366261778,1750164763856,-1415.52,0.00017917,2]
[366261779,1750164763866,-490.0,0.00017917,2]
[366261780,1750164763876,-490.0,0.00017917,2]
[366261781,1750164763886,-1049.28,0.00017917,2]
[366261782,1750164763896,-250.03682,0.00017917,2]
[366261783,1750164763906,-663.92,0.00017917,2]
[366261784,1750164763916,-708.23,0.00017917,2]
[366261785,1750164763926,-1322.55,0.00017917,2]
[366261786,1750164763937,-163.344123,0.00017917,2]
[366261787,1750164763948,-163.344123,0.00017917,2]
[366261788,1750164763958,-163.344123,0.00017917,2]
[366261789,1750164763968,-163.344123,0.00017917,2]
[366261790,1750164763979,-163.344123,0.00017917,2]
[366261791,1750164763990,-163.344123,0.00017917,2]
[366261792,1750164764000,-328.17295507,0.00017917,2]
[366261793,1750164764011,-163.344123,0.00017917,2]
[366261794,1750164764020,-163.344123,0.00017917,2]
[366261795,1750164764030,-163.344123,0.00017917,2]
[366261796,1750164764041,-163.344123,0.00017917,2]
[366261797,1750164764052,-1219.76,0.00017917,2]
[366261798,1750164764062,-163.344123,0.00017917,2]
[366261799,1750164764072,-163.344127,0.00017917,2]
[366261800,1750164764083,-490.0,0.00017917,2]
[366261801,1750164764093,-2206.61,0.00017917,2]
[366261802,1750164764104,-490.0,0.00017917,2]
[366261803,1750164764114,-490.0,0.00017917,2]
[366261804,1750164764124,-731.67,0.00017917,2]
[366261805,1750164764134,-538.95,0.00017917,2]
[366261806,1750164764144,-151.0,0.00017917,2]
[366261807,1750164764155,-520.27,0.00017917,2]
[366261808,1750164764165,-151.0,0.00017917,2]
[366261809,1750164764175,-151.0,0.00017917,2]
[366261810,1750164764185,-151.0,0.00017917,2]
[366261811,1750164764200,-151.0,0.00017917,2]
[366261812,1750164764210,-151.0,0.00017917,2]
[366261813,1750164764228,-490.0,0.00017917,2]
[366261814,1750164764240,-151.0,0.00017917,2]
[366261815,1750164764250,-151.0,0.00017917,2]
[366261816,1750164764261,-151.0,0.00017917,2]
[366261817,1750164764273,-249.480919,0.00017917,2]
[366261818,1750164764284,-490.0,0.00017917,2]
[366261819,1750164764297,-490.0,0.00017917,2]
[366261820,1750164764307,-709.65,0.00017917,2]
[366261821,1750164764318,-278.42681085,0.00017917,2]
[366261822,1750164764329,-746.18,0.00017917,2]
[366261823,1750164764339,-490.0,0.00017917,2]
[366261824,1750164764349,-490.0,0.00017917,2]
[366261825,1750164764360,-232.215979,0.00017917,7]
[366261826,1750164764370,-490.0,0.00017917,2]